Cogmind - Beta 14 @@@ ROGUE MODE // 2025.01.15 @ 08:30:49 Player: Doobadoop Result: Destroyed by Y-45 Defender with Beam Rifle Performance ------------- Evolutions (1) 500 Regions Visited (3) 600 Robots Destroyed (64) 320 Value Destroyed (1424) 1424 Prototype IDs (3) 60 Alien Tech Used (0) 0 Bonus (49) 49 TOTAL SCORE: 2953 Bonus ------- High Alert Combat Kills 49 Cogmind --------- Core Integrity 0/400 Matter 5/300 Energy 261/265 System Corruption 2% Temperature Cool (11) Movement Treading (160) Location -9/Storage Parts ------- > --- POWER (1) -------- Improved Ion Engine > --- PROPULSION (2) --- Light Treads Light Treads > --- UTILITY (4) ------ Medium Storage Unit Improved Sensor Array Signal Interpreter Transport Network Coupler > --- WEAPON (2) ------- Mini Grenade Launcher Mini Grenade Launcher > --- INVENTORY (10) --- Light Treads Light Treads Heat Sink Medium Storage Unit Medium Matter Pod (71) Weight Redist. System Terrain Scanner Terrain Scan Processor High-powered Tractor Beam Peak State ------------ > --- POWER ------------ Light Nuclear Core > --- PROPULSION ------- Carbon-fiber Leg Carbon-fiber Leg > --- UTILITY ---------- Medium Storage Unit Compact Matter Pod Sensor Array Signal Interpreter > --- WEAPON ----------- Light Assault Rifle Grenade Launcher > --- INVENTORY -------- Light Ion Engine Carbon-fiber Leg Carbon-fiber Leg Medium Matter Pod Weight Redist. System Terrain Scanner Terrain Scan Processor Transport Network Coupler Grenade Launcher Datajack [Rating: 18] Favorites ----------- Power Improved Ion Engine Engine Improved Ion Engine Power Core Light Nuclear Core Propulsion Light Treads Treads Light Treads Leg Carbon-fiber Leg Utility Medium Storage Unit Device Sensor Array Storage Medium Storage Unit Processor Signal Interpreter Weapon Grenade Launcher Energy Gun Medium Laser Ballistic Gun Light Assault Rifle Launcher Grenade Launcher Build | -11 -10 -9 -9 ------- Run | Yrd Mat Mat Sto Slots Evolved 2 | . . 2 . Power . | . . . . Propulsion . | . . . . Utility 2 | . . 2 . Weapon . | . . . . Parts Attached 43 | 6 11 15 11 Power 9 | 1 2 4 2 Engine 8 | 1 1 4 2 Core 1 | . 1 . . Reactor . | . . . . Propulsion 11 | 2 1 3 5 Treads 5 | 2 1 . 2 Leg 6 | . . 3 3 Wheel . | . . . . Hover . | . . . . Flight . | . . . . Utility 12 | 1 4 7 . Device 5 | . 3 2 . Storage 5 | 1 1 3 . Processor 2 | . . 2 . Hackware . | . . . . Protection . | . . . . Artifact . | . . . . Weapon 11 | 2 4 1 4 Energy Gun 3 | 2 1 . . Energy Cannon . | . . . . Ballistic Gun 1 | . 1 . . Ballistic Cannon . | . . . . Launcher 7 | . 2 1 4 Special Weapon . | . . . . Impact Weapon . | . . . . Slashing Weapon . | . . . . Piercing Weapon . | . . . . Special Melee Weapon . | . . . . Unidentified Prototypes 1 | . . . 1 Parts Lost 15 | . 3 5 7 Power 4 | . 1 2 1 Propulsion 6 | . 1 1 4 Utility . | . . . . Weapon 5 | . 1 2 2 Highest Loss Streak 3 | . 2 3 3 To Critical Strikes . | . . . . Average Slot Usage (%) 93 | . 92 98 94 Engine 9 | . 9 6 10 Core 3 | . 4 3 . Treads 15 | . 22 4 9 Leg 6 | . . 17 10 Device 10 | . 9 14 11 Storage 14 | . 16 13 11 Processor 9 | . . 15 22 Energy Gun 6 | . 11 . . Ballistic Gun 5 | . 5 11 4 Launcher 11 | . 9 10 15 Peak Build Rating 18 | 6 10 18 17 Average Rating 10 | 5 7 15 14 On Entrance 8 | . 6 10 16 Naked Turns . | . . . . Heaviest Build 25 | 14 25 23 22 Greatest Support 40 | 40 40 40 40 Greatest Overweight (x) 1 | . . 1 1 Average Overweight (x) . | . . . . Largest Inventory Capacity 10 | 8 10 10 10 Average Capacity 9 | 7 9 10 10 Most Carried 10 | 3 10 10 9 Average Carried 7 | 1 8 9 7 Final Capacity 10 | 8 10 10 10 Final Carried 10 | 3 10 7 9 Class Distribution -------------------- 62% | Mutant 17% | Skirmisher 16% | Scavenger-Skirmisher Dominant Class ---------------- Mutant | -10/Materials Skirmisher | -9/Materials Scavenger-Skirmisher | -9/Storage Resources | -11 -10 -9 -9 ----------- Run | Yrd Mat Mat Sto Matter Collected 960 | 224 264 185 287 Remotely . | . . . . Salvage Created 1418 | 38 559 332 489 Parts 113 | 3 42 36 32 Haulers Intercepted 4 | . 2 . 2 Recyclers Shooed 3 | 2 1 . . Parts Field Recycled . | . . . . Retrieved Matter . | . . . . Parts Self-Destructed . | . . . . Prevented . | . . . . Kills | -11 -10 -9 -9 ------- Run | Yrd Mat Mat Sto Combat Hostiles Destroyed 34 | . 12 10 12 Guns 12 | . 5 5 2 AOE 21 | . 6 5 10 Classes Destroyed 11 | 2 7 2 . Worker 6 | . 3 2 1 Builder 3 | . 1 . 2 Tunneler 2 | 1 . 1 . Hauler 4 | . 2 . 2 Recycler 5 | 1 2 1 1 Mechanic 1 | . . 1 . Operator 4 | . 2 1 1 Watcher 5 | . 3 1 1 Swarmer 10 | . 6 4 . Grunt 15 | . 6 3 6 Sentry 9 | . . 3 6 Best Kill Streak 9 | 1 6 9 5 Combat Bots Only 6 | . 3 6 4 Max Kills in Single Turn 4 | 1 3 4 3 Gunslinging . | . . . . Exploded 2 | . 2 2 2 Melee . | . . . . Uniques/NPCs Destroyed . | . . . . Combat | -11 -10 -9 -9 -------- Run | Yrd Mat Mat Sto Hostile Shots Fired 235 | . 52 90 93 Missed 86 | . 16 39 31 Damage Taken 2219 | . 570 746 903 Core 469 | . 57 111 301 Absorbed by Shields . | . . . . Regen/Repaired (Parts) 48 | . . . 48 Core Remaining (%) 88 | 100 77 . . Volleys Fired 191 | . 56 37 98 Largest 2 | . 2 1 2 Hottest 70 | . 70 30 60 Shots Fired 205 | . 66 37 102 Gun 148 | . 55 28 65 Cannon . | . . . . Launcher 57 | . 11 9 37 Special . | . . . . Kinetic 103 | . 10 28 65 Thermal 45 | . 45 . . Explosive 57 | . 11 9 37 Electromagnetic . | . . . . Robot Hit Streak 20 | . 20 9 20 Robot Miss Streak 5 | . 5 1 1 Penetration Max . | . . . . Secondary Targets . | . . . . Shots Hit Robots 127 | . 43 31 53 Core Hits 120 | 2 38 29 51 Critical Kills . | . . . . Critical Parts Destroyed . | . . . . Critical Strikes 3 | . 3 . . Burn 3 | . 3 . . Melee Attacks . | . . . . Impact . | . . . . Slashing . | . . . . Piercing . | . . . . Sneak Attacks . | . . . . Combat Hostiles . | . . . . Follow-up Attacks . | . . . . Damage Inflicted 3702 | 28 1141 1025 1508 Guns 976 | . 483 206 287 Cannons . | . . . . Explosions 2610 | . 594 816 1200 Melee . | . . . . Ramming 116 | 28 64 3 21 Kinetic 553 | . 60 206 287 Thermal 601 | . 601 . . Explosive 2432 | . 416 816 1200 Electromagnetic . | . . . . Impact . | . . . . Slashing . | . . . . Piercing . | . . . . Highest Corruption 2 | . . 2 2 Average Corruption 2 | . . 2 2 Corruption Purged . | . . . . Corruption Blocked . | . . . . Effects 11 | . . 3 8 Message Errors 3 | . . 1 2 Matter Fused 3 | . . . 3 Heat Flow Errors 2 | . . 1 1 Parts Rejected 1 | . . 1 . Data Loss (minor) 2 | . . . 2 Overload Shots . | . . . . Overflow Damage 64 | . 19 8 37 Projectiles . | . . . . Explosions 64 | . 19 8 37 Melee . | . . . . Knockbacks 1 | 1 . . . Impact 1 | 1 . . . Kinetic . | . . . . Secondary . | . . . . Self-Inflicted Damage 198 | . 165 . 33 Shots 5 | . 4 . 1 Rammed 27 | 11 13 . 3 Targets Rammed 38 | 13 16 1 8 Kicked 6 | . . 1 5 Crushed 5 | 2 3 . . Highest Temperature 276 | . 175 203 276 Average Temperature 53 | . 52 53 54 Received Heat Transfer 987 | . 186 330 471 Siege Activations . | . . . . Robots Corrupted . | . . . . Combat Hostiles . | . . . . Parts Fried . | . . . . Impact Corruptions . | . . . . Robots Melted 1 | . 1 . . Combat Hostiles 1 | . 1 . . Parts Melted . | . . . . Heat Transferred 1630 | . 1630 . . Parts Sabotaged . | . . . . Parts Stolen . | . . . . Parts Stripped . | . . . . Power Chain Reactions . | . . . . Alert | -11 -10 -9 -9 ------- Run | Yrd Mat Mat Sto Peak Influence 532 | 10 313 442 532 Initial 97 | . 6 76 97 Average 190 | 4 142 214 311 Maximum Alert Level 2 | . 1 2 2 Low Security (%) 54 | 100 77 38 13 Level 1 32 | . 22 50 47 Level 2 13 | . . 10 38 Level 3 . | . . . . Level 4 . | . . . . Level 5 . | . . . . High Security . | . . . . Max Security . | . . . . Squads Dispatched 5 | . . 2 3 Investigation . | . . . . Extermination . | . . . . Reinforcement 4 | . . 2 2 Assault . | . . . . Garrison 1 | . . . 1 Intercept . | . . . . Searches Triggered . | . . . . Construction Impeded 2 | . . 1 1 Haulers Reinforced . | . . . . Active Scanning Responses . | . . . . Cargo Convoy Interrupts . | . . . . Stealth | -11 -10 -9 -9 --------- Run | Yrd Mat Mat Sto Distress Signals 4 | . . 1 3 Communications Jammed . | . . . . Distress Signals . | . . . . Times Spotted 57 | . 22 16 19 Peak Tracking Total 6 | . 5 6 5 Tactical Retreats 3 | . . . 3 Traps | -11 -10 -9 -9 ------- Run | Yrd Mat Mat Sto Traps Triggered 2 | . . 2 . Indirectly . | . . . . Trap Hack Attempts . | . . . . Triggered . | . . . . Disarmed . | . . . . Reprogrammed . | . . . . Reused . | . . . . Traps Extracted . | . . . . Installed . | . . . . Triggered . | . . . . Machines | -11 -10 -9 -9 ---------- Run | Yrd Mat Mat Sto Machines Disabled 14 | . 5 2 7 Max in Single Turn 5 | . 5 1 2 Garrison Access 1 | . . . 1 Machines Repaired . | . . . . Machines Dismantled . | . . . . Machines Sabotaged . | . . . . Overloaded Fab Kills . | . . . . Hacking | -11 -10 -9 -9 --------- Run | Yrd Mat Mat Sto Machines Accessed 8 | . 4 . 4 Terminals 6 | . 4 . 2 Fabricators . | . . . . Repair Stations 1 | . . . 1 Recycling Units . | . . . . Scanalyzers . | . . . . Garrison Access 1 | . . . 1 Total Hacks 17 | . 10 . 7 Successful 11 | . 6 . 5 Failed 6 | . 4 . 2 Catastrophic . | . . . . Database Lockouts . | . . . . Manual . | . . . . Terminals 14 | . 10 . 4 Fabricators . | . . . . Repair Stations 2 | . . . 2 Recycling Units . | . . . . Scanalyzers . | . . . . Garrison Access 1 | . . . 1 Terminal Hacks 8 | . 6 . 2 Record 5 | . 4 . 1 Prototype ID Bank 1 | . 1 . . Alert Level 1 | . . . 1 Zone Layout 1 | . 1 . . Fabricator Hacks . | . . . . Repair Station Hacks 2 | . . . 2 Scan Component 1 | . . . 1 Repair 1 | . . . 1 Recycling Unit Hacks . | . . . . Scanalyzer . | . . . . Garrison Access Hacks 1 | . . . 1 Seal Access 1 | . . . 1 Unauthorized Hacks . | . . . . Terminals . | . . . . Fabricators . | . . . . Repair Stations . | . . . . Recycling Units . | . . . . Scanalyzers . | . . . . Garrison Access . | . . . . Data Cores Recovered 1 | . 1 . . Used . | . . . . Hacking Detections 5 | . 4 . 1 Full Trace Events . | . . . . Feedback Events . | . . . . Feedback Blocked . | . . . . Robot Schematics Acquired . | . . . . Robots Built . | . . . . Authchips . | . . . . Time . | . . . . Total Robot Build Rating . | . . . . Part Schematics Acquired . | . . . . Parts Built . | . . . . Authchips . | . . . . Time . | . . . . Total Part Build Rating . | . . . . Parts Repaired 1 | . . . 1 Time 32 | . . . 32 Parts Recycled . | . . . . Recycled Matter . | . . . . Retrieved Matter . | . . . . Retrieved Components . | . . . . Parts Scanalyzed . | . . . . Part Schematics Acquired . | . . . . Parts Damaged . | . . . . Bothacking | -11 -10 -9 -9 ------------ Run | Yrd Mat Mat Sto Used RIF Installer . | . . . . Robots Hacked . | . . . . Non-combat . | . . . . Combat . | . . . . Robot Hacks Applied . | . . . . Relay Couplers Released . | . . . . Fabnet Peak Effective % . | . . . . Robots Rewired . | . . . . Allies Hacked . | . . . . Hacks Repelled . | . . . . Allies | -11 -10 -9 -9 -------- Run | Yrd Mat Mat Sto Total Allies . | . . . . Largest Group . | . . . . Highest-Rated Group . | . . . . Highest-Rated Ally . | . . . . Total Orders . | . . . . Ally Attacks . | . . . . Total Damage . | . . . . Kills . | . . . . Allies Corrupted . | . . . . Allies Melted . | . . . . Intel | -11 -10 -9 -9 ------- Run | Yrd Mat Mat Sto Robot Analysis Total . | . . . . Derelict Logs Recovered . | . . . . Drone Launches . | . . . . Drone Recoveries . | . . . . Exploration | -11 -10 -9 -9 ------------- Run | Yrd Mat Mat Sto Turns Passed 2886 | 256 1360 416 854 Spaces Moved 1500 | 144 732 233 391 Core 6 | 6 . . . Treads 1144 | 138 732 53 221 Legs 350 | . . 180 170 Wheels . | . . . . Hover . | . . . . Flight . | . . . . Fastest Speed 50 | 50 160 120 120 Average Speed 151 | 155 160 129 148 Slowest Speed 190 | 160 160 190 190 Overloaded Moves . | . . . . Propulsion Burnouts . | . . . . Robots Hopped . | . . . . Cave-ins Triggered . | . . . . Exploration Rate (%) 34 | 5 63 24 47 Regions Visited 3 Branch Regions 1 Pre-discovered Areas . | . . . . Known Exits Taken 1 | . . 1 . Unknown Exits Taken 2 | 1 1 . . Scrap Searched . | . . . . Spaces Dug 7 | . 7 . . Terrain Destroyed 266 | . 96 26 144 Melee . | . . . . Projectile . | . . . . AOE 266 | . 96 26 144 Terrain Rammed . | . . . . Walls Destroyed . | . . . . Machines Disabled . | . . . . Actions | -11 -10 -9 -9 --------- Run | Yrd Mat Mat Sto Total 1901 | 167 848 315 571 Wait 73 | . 9 14 50 Move 1498 | 143 731 233 391 Hop . | . . . . Pick Up 37 | 5 16 7 9 Fast Attach 17 | 4 3 5 5 Attach 19 | 2 4 7 6 Detach 2 | . 1 1 . Swap 7 | . 4 3 . Drop 19 | . 8 8 3 Fire 191 | . 56 37 98 Melee . | . . . . Ram . | . . . . Kick 5 | . . . 5 Crush 32 | 13 16 . 3 Escape Stasis . | . . . . Rewire 1 | . . . 1 Trap . | . . . . Miscellaneous . | . . . . Route ------- -11/Scrapyard -10/Materials (discovered 3 exits: [*Mat x2] / [*Min]) -9/Materials (discovered 3 exits: *Min / *Sto x2) -9/Storage History --------- Turn | Location | Event 28 | -11/Scrapyard | Discovered new exit (range 14) 257 | -11/Scrapyard | Entered Materials 315 | -10/Materials | Build established: Mutant 673 | -10/Materials | Discovered new exit (range 12) 789 | -10/Materials | Discovered new exit (range 13) 976 | -10/Materials | Discovered new exit (range 14) 1617 | -10/Materials | Entered another Materials area 1617 | -9/Materials | Evolved 2 slots: Utility x2 1746 | -9/Materials | Discovered new exit (range 4) 1814 | -9/Materials | Identified exit to Storage 1991 | -9/Materials | Discovered new exit (range 13) 2007 | -9/Materials | Discovered exit to Storage (range 15) 2011 | -9/Materials | Identified exit to Mines 2033 | -9/Materials | Entered Storage 2054 | -9/Storage | Build established: Skirmisher 2060 | -9/Storage | Lost 3 parts (1n2w) 2136 | -9/Storage | Garrison activated, responded to threat 2317 | -9/Storage | Core integrity fell below 50% 2376 | -9/Storage | Lost 3 parts (1p1n1w) 2400 | -9/Storage | Core integrity fell below 20% 2632 | -9/Storage | Repaired Mni. Grenade Launcher 2887 | -9/Storage | Destroyed by Y-45 Defender with Beam Rifle Last Messages --------------- 02664_ Slammed into K-01 Serf. 02666_ U-05 Engineer lays Concrete. 02667_ Slammed into U-05 Engineer. 02668_ R-06 Scavenger collects Wheel. 02670_ U-05 Engineer builds a Wall. 02674_ R-06 Scavenger collects Welding Torch. 02678_ U-05 Engineer lays Concrete. 02683_ Acquired Lgt. Treads. 02731_ System corrupted: Heat flow error (+298). 02762_ Connecting with Door Terminal... 02775_ Acquired Med. Storage Unit. 02779_ Attempting to rewire K-01 Serf. 02779_ K-01 Serf is broken beyond repair. 02823_ Destroyed Tractor Beam. 02823_ Destroyed Lgt. Ion Engine. 02823_ R-06 Scavenger destroyed. 02826_ Y-45 Defender destroyed. 02831_ K-01 Serf collects debris. 02834_ The unstable cave ceiling collapses. 02835_ U-05 Engineer builds a Door. Map ----- +----------------------------------------------------+ | ???????????? | | ???????????? ! T | | ???????????? a [ | | ????????????????#####+#######+##### #######+## | | ????????????????????????# """ """ #######?????# ? | | ????????????????????????# """ """ #???????????# ? | | ????????????????????????# """ """ ###?????????" ? | | ????????????????????????# ""#?????????#T#? | | ????????????????????????# T"#?????????###? | | ????????????????????????# ""#??????????### | | ????????????????????????# ###????????### # | | ????????????????????????# ] #???????#######[ | | ????????????????????????#### #+# ####???##T### # | | ???????????????????????????# # ########### ! | | ???????????????????????????# # # | | ???????????????????????????### # " "* ! | | ??????????????????????######## """ # " !! | | ??????????????????????? ## G" #!!=![ | | ????????????????????????" ## """ #= * | | ????????????????????????" ## # ##/#### | | ????????????????????????" + ###! ## [ | | ?????????????????????""""" ## # # ##* | | ?????????????????????"[] ## # #! ##= | | ??????????????????# """ ## ######### # ## | | ?????????????????X# ## ##??????# ## ## " | | ??????????????????#######@###% ########## # | | ??????????????????????## # " | | ??????????????????????## Y + " | | ??????????????????????####### ########## # " | | ???????????????????????####### ## ##?????## ### | | ??????????????????????# """ # ## ##??#####+##### | | ??????????????????????# """ + ## ##??# # | | ?????????????x????????# """ # x######## | | ??????????????????????# # ### # # | | ??????????????????????# # x # """ """ # | | ??????????????????????# # a+ """ """ # | | ??????????????????????# ###### # """ """ # | | ??????????????????????###########?## ## # | | ?????????????????????????##?######## ## # | | ???????????????????????### # # ####+####### | | ??????????????????????### # #??# #?????? | | ???????????????????#### x # #??# #?????? | | ???????????????a # #??# ####### | | ???????????????? % # #??# # | | ???????????????? = + #??# # | | ???????????????????#### # #??# # | | ??????????????????????## # #### # | | ???????????????????????###### # + | | ?a??????????????????????????# # # | | ????????????????????????????##########+## + ! | +----------------------------------------------------+ Best States ------------- Heat Dissipation 28 Energy Generation 14 Energy Capacity 280 Matter Stores 356 Matter Capacity 400 Sight Range 16 Robot Scan Range 15 Terrain Scan Range 14 Terrain Scan Density 10 Evasion (%) 55 Recoil Reduction 2 Item Schematics ----------------- None Robot Schematics ------------------ None Fabricated ------------ Nothing Alien Tech Used ----------------- None Achievements -------------- None Challenges ------------ None Game ------ Seed AnalysisImpactAutocannon Manual? 0 Play Time 00:27:08 Cumulative 10.9 hours Start 2025.01.15 @ 08:07:05 End 2025.01.15 @ 08:30:49 Sessions 1 Manual Loads 0 Difficulty Rogue Special Mode None Game No. 19 Rogue 17 Adventurer 2 Explorer 0 Win Type - Total 0 Types 0/0/0/0/0/0/0/0/0 Lore% 5 Gallery% 20 Achievement% 16 Wizard Run 0 Options --------- Layout 1 ASCII 0 Keyboard 0 Movement Arrows Keybinds 0 Fullscreen 1 Font 32/SmallcapsGlow Map View 50x35 Zoom Use 0% Tactical HUD 1 Map Filters NONE Filters NONE Steam 1 RUN: 2add1d89-4d05-4bec-a7c2-f657988f668f